[Event "European Online Club-ch-C 2021"]
[Site "Online"]
[Date "2021.03.27"]
[Round "1.13"]
[White "Delgado Ramirez, Neuris"]
[Black "Migot, Tangi"]
[Result "1-0"]
[ECO "B42"]
[WhiteElo "2615"]
[BlackElo "2353"]
[Annotator "ChessBase"]
[PlyCount "143"]
[EventDate "2021.03.27"]
[EventType "team-tourn"]
[EventCountry "NET"]
[SourceTitle "playchess.com"]
[Source "ChessBase"]
[SourceQuality "1"]
[TimeControl "900+5"]

1. e4 {[%emt 0:00:00]} c5 {[%emt 0:00:05]} 2. Nf3 {[%emt 0:00:06]} e6 {[%emt 0:00:01]} 3. b3 {[%emt 0:00:08]} b6 {[%emt 0:00:07]} 4. c4 {[%emt 0:00:11]} Bb7 {[%emt 0:00:05]} 5. Nc3 {[%emt 0:00:03]} d6 {[%emt 0:00:13]} 6. d4 {[%emt 0:00:09]} cxd4 {[%emt 0:00:04]} 7. Nxd4 {[%emt 0:00:02]} Nf6 {[%emt 0:00:01]} 8. Bd3 {[%emt 0:00:06]} Nbd7 {[%emt 0:00:02]} 9. Qe2 {[%emt 0:00:10]} Be7 {[%emt 0:00:30]} 10. Bb2 {[%emt 0:00:04]} a6 {[%emt 0:00:05]} 11. O-O {[%emt 0:00:05]} O-O {[%emt 0:00:05]} 12. Rac1 {[%emt 0:00:38]} Re8 {[%emt 0:00:08]} 13. Rfd1 {[%emt 0:00:07]} Rc8 {[%emt 0:00:03]} 14. Bb1 {[%emt 0:00:11]} Qc7 {[%emt 0:00:13]} 15. Rd3 {[%emt 0:00:49]} Bf8 {[%emt 0:00:45]} 16. Rcd1 {[%emt 0:01:20]} Rcd8 {[%emt 0:01:05]} 17. Rg3 {[%emt 0:00:34]} g6 {[%emt 0:00:16]} 18. Qd2 {[%emt 0:02:20]} Bg7 {[%emt 0:01:30]} 19. Qg5 {[%emt 0:01:28]} Qc5 {[%emt 0:02:41]} 20. Qd2 {[%emt 0:00:04]} Qc7 {[%emt 0:00:35]} 21. Re1 {[%emt 0:01:12]} Nh5 {[%emt 0:00:57]} 22. Rh3 {[%emt 0:00:12]} Nhf6 {[%emt 0:00:02]} 23. Nf3 {[%emt 0:00:23]} Qb8 {[%emt 0:01:38]} 24. Qf4 {[%emt 0:00:33]} Ne5 {[%emt 0:01:25]} 25. Qh4 {[%emt 0:01:05]} Qc7 {[%emt 0:00:25]} 26. Bc1 {[%emt 0:00:14]} Neg4 {[%emt 0:01:15]} 27. Rg3 {[%emt 0:00:10]} Rc8 {[%emt 0:01:08]} 28. Bd2 {[%emt 0:00:48]} h5 {[%emt 0:00:30]} 29. h3 {[%emt 0:00:42]} Ne5 {[%emt 0:00:02]} 30. Nd4 {[%emt 0:00:30]} Qc5 {[%emt 0:00:21]} 31. Na4 {[%emt 0:00:20]} Qc7 {[%emt 0:00:17]} 32. f4 {[%emt 0:00:02]} Nc6 {[%emt 0:00:11]} 33. Bc3 {[%emt 0:00:30]} Nxd4 {[%emt 0:00:21]} 34. Bxd4 {[%emt 0:00:04]} e5 {[%emt 0:00:03]} 35. Bxb6 {[%emt 0:00:06]} Qe7 {[%emt 0:00:08]} 36. f5 {[%emt 0:00:03]} Nd7 {[%emt 0:00:24]} 37. Qxe7 {[%emt 0:00:09]} Rxe7 {[%emt 0:00:00]} 38. fxg6 {[%emt 0:00:07]} f6 {[%emt 0:00:02]} 39. Bf2 {[%emt 0:00:07]} Bc6 {[%emt 0:00:03]} 40. Nb6 {[%emt 0:00:09]} Nxb6 {[%emt 0:00:02]} 41. Bxb6 {[%emt 0:00:02]} Bh6 {[%emt 0:00:02]} 42. Be3 {[%emt 0:00:05]} Kg7 {[%emt 0:00:04]} 43. Bxh6+ {[%emt 0:00:04]} Kxh6 {[%emt 0:00:00]} 44. Rd1 {[%emt 0:00:08]} Rd7 {[%emt 0:00:01]} 45. Rf1 {[%emt 0:00:09]} Kg7 {[%emt 0:00:04]} 46. Rf5 {[%emt 0:00:04]} h4 {[%emt 0:00:21]} 47. Rgf3 {[%emt 0:00:03]} Rf8 {[%emt 0:00:04]} 48. g3 {[%emt 0:00:02]} Kxg6 {[%emt 0:00:04]} 49. gxh4 {[%emt 0:00:02]} Rh7 {[%emt 0:00:02]} 50. h5+ {[%emt 0:00:18]} Rxh5 {[%emt 0:00:12]} 51. Rg3+ {[%emt 0:00:03]} Kh6 {[%emt 0:00:08]} 52. Rxh5+ {[%emt 0:00:11]} Kxh5 {[%emt 0:00:00]} 53. Kf2 {[%emt 0:00:04]} f5 {[%emt 0:00:08]} 54. exf5 {[%emt 0:00:04]} e4 {[%emt 0:00:02]} 55. Ke3 {[%emt 0:00:01]} Rxf5 {[%emt 0:00:03]} 56. Bxe4 {[%emt 0:00:03]} Re5 {[%emt 0:00:05]} 57. Rg4 {[%emt 0:00:02]} Bd7 {[%emt 0:00:08]} 58. Rf4 {[%emt 0:00:09]} Bxh3 {[%emt 0:00:05]} 59. Kd4 {[%emt 0:00:01]} Kg5 {[%emt 0:00:09]} 60. Rf8 {[%emt 0:00:05]} a5 {[%emt 0:00:08]} 61. Rd8 {[%emt 0:00:10]} Kf4 {[%emt 0:00:03]} 62. Bd5 {[%emt 0:00:03]} Re2 {[%emt 0:00:05]} 63. Rxd6 {[%emt 0:00:07]} Rxa2 {[%emt 0:00:03]} 64. Rf6+ {[%emt 0:00:05]} Kg5 {[%emt 0:00:03]} 65. Ra6 {[%emt 0:00:03]} Bc8 {[%emt 0:00:08]} 66. Ra8 {[%emt 0:00:03]} Bf5 {[%emt 0:00:09]} 67. Kc5 {[%emt 0:00:08]} Bc2 {[%emt 0:00:04]} 68. b4 {[%emt 0:00:04]} a4 {[%emt 0:00:02]} 69. b5 {[%emt 0:00:01]} a3 {[%emt 0:00:20]} 70. b6 {[%emt 0:00:03]} Ra1 {[%emt 0:00:02]} 71. b7 {[%emt 0:00:03]} Rb1 {[%emt 0:00:02]} 72. Rxa3 {[%emt 0:00:08]} 1-0

[Event "European Online Club-ch-C 2021"]
[Site "Online"]
[Date "2021.03.27"]
[Round "1.14"]
[White "Le Goff, Ronan"]
[Black "Gukesh D"]
[Result "0-1"]
[ECO "D02"]
[WhiteElo "2288"]
[BlackElo "2563"]
[Annotator "ChessBase"]
[PlyCount "76"]
[EventDate "2021.03.27"]
[EventType "team-tourn"]
[EventCountry "NET"]
[SourceTitle "playchess.com"]
[Source "ChessBase"]
[SourceQuality "1"]
[TimeControl "900+5"]

1. d4 {[%emt 0:00:00]} d5 {[%emt 0:00:07]} 2. Nf3 {[%emt 0:00:04]} Nf6 {[%emt 0:00:02]} 3. g3 {[%emt 0:00:01]} b5 {[%emt 0:00:05]} 4. Bg2 {[%emt 0:00:27]} e6 {[%emt 0:00:01]} 5. O-O {[%emt 0:00:05]} Nbd7 {[%emt 0:00:02]} 6. a4 {[%emt 0:00:07]} b4 {[%emt 0:00:04]} 7. c4 {[%emt 0:00:58]} bxc3 {[%emt 0:00:02]} 8. Nxc3 {[%emt 0:00:02]} a5 {[%emt 0:00:16]} 9. Ne5 {[%emt 0:00:43]} Nxe5 {[%emt 0:00:51]} 10. dxe5 {[%emt 0:00:04]} Nd7 {[%emt 0:00:02]} 11. e4 {[%emt 0:00:47]} d4 {[%emt 0:00:34]} 12. Nb5 {[%emt 0:01:48]} c5 {[%emt 0:00:42]} 13. Bf4 {[%emt 0:02:28]} Be7 {[%emt 0:00:47]} 14. Qg4 {[%emt 0:00:22]} Kf8 {[%emt 0:01:56]} 15. h4 {[%emt 0:00:40]} Ba6 {[%emt 0:00:27]} 16. Rfc1 {[%emt 0:00:41]} h5 {[%emt 0:00:34]} 17. Qd1 {[%emt 0:00:20]} Bxb5 {[%emt 0:02:41]} 18. axb5 {[%emt 0:00:05]} g5 {[%emt 0:00:02]} 19. hxg5 {[%emt 0:00:15]} Bxg5 {[%emt 0:00:03]} 20. Qd2 {[%emt 0:03:33]} Rg8 {[%emt 0:00:11]} 21. b4 {[%emt 0:01:45]} Bxf4 {[%emt 0:00:46]} 22. Qxf4 {[%emt 0:00:02]} axb4 {[%emt 0:00:09]} 23. Qh6+ {[%emt 0:00:11]} Ke8 {[%emt 0:00:02]} 24. Qh7 {[%emt 0:00:13]} Kf8 {[%emt 0:00:31]} 25. Qh6+ {[%emt 0:00:04]} Ke7 {[%emt 0:00:04]} 26. Qxh5 {[%emt 0:00:13]} Rxa1 {[%emt 0:01:15]} 27. Rxa1 {[%emt 0:00:09]} Qb8 {[%emt 0:00:23]} 28. Qh4+ {[%emt 0:00:13]} Ke8 {[%emt 0:00:12]} 29. Qh7 {[%emt 0:00:06]} Rf8 {[%emt 0:00:09]} 30. Ra6 {[%emt 0:00:20]} b3 {[%emt 0:00:20]} 31. Qh6 {[%emt 0:00:24]} b2 {[%emt 0:00:10]} 32. Bh3 {[%emt 0:00:13]} b1=Q+ {[%emt 0:00:04]} 33. Kh2 {[%emt 0:00:02]} Qxe5 {[%emt 0:00:22]} 34. Bxe6 {[%emt 0:00:05]} fxe6 {[%emt 0:00:23]} 35. Ra8+ {[%emt 0:00:17]} Ke7 {[%emt 0:00:12]} 36. Qh7+ {[%emt 0:00:03]} Rf7 {[%emt 0:00:04]} 37. Qg8 {[%emt 0:00:08]} Qh5+ {[%emt 0:00:05]} 38. Kg2 {[%emt 0:00:03]} Qbh1# {[%emt 0:00:03]} 0-1

[Event "European Online Club-ch-C 2021"]
[Site "Online"]
[Date "2021.03.27"]
[Round "1.15"]
[White "Guerrero Olmos, Sergio"]
[Black "Bouget, Alexandre"]
[Result "1-0"]
[ECO "D90"]
[WhiteElo "2372"]
[BlackElo "2247"]
[Annotator "NA"]
[PlyCount "97"]
[EventDate "2021.03.27"]
[EventType "team-tourn"]
[EventCountry "NET"]
[SourceTitle "playchess.com"]
[Source "ChessBase"]
[SourceQuality "1"]
[TimeControl "900+5"]

1. d4 {[%emt 0:00:00]} Nf6 {[%emt 0:00:06]} 2. Nf3 {[%emt 0:00:02]} c5 {[%emt 0:00:09]} 3. c3 {[%emt 0:00:03]} cxd4 {[%emt 0:00:19]} 4. cxd4 {[%emt 0:00:02]} g6 {[%emt 0:00:01]} 5. Nc3 {[%emt 0:00:02]} Bg7 {[%emt 0:00:02]} 6. Bf4 {[%emt 0:00:44]} d5 {[%emt 0:00:23]} 7. e3 {[%emt 0:00:04]} O-O {[%emt 0:00:03]} 8. Be2 {[%emt 0:00:07]} Nc6 {[%emt 0:00:54]} 9. O-O {[%emt 0:00:04]} Bf5 {[%emt 0:01:21]} 10. Rc1 {[%emt 0:00:09]} Ne4 {[%emt 0:00:47]} 11. Qb3 {[%emt 0:01:23]} a6 {[%emt 0:03:31]} 12. Qxb7 {[%emt 0:00:56]} Na5 {[%emt 0:00:22]} 13. Qc7 {[%emt 0:00:33]} Nxc3 {[%emt 0:03:04]} 14. Rxc3 {[%emt 0:00:33]} Nc4 {[%emt 0:00:07]} 15. b3 {[%emt 0:01:58]} Qxc7 {[%emt 0:00:05]} 16. Bxc7 {[%emt 0:00:04]} Rfc8 {[%emt 0:00:36]} 17. Bg3 {[%emt 0:01:47]} Nd6 {[%emt 0:00:07]} 18. Rxc8+ {[%emt 0:00:10]} Rxc8 {[%emt 0:00:30]} 19. Bxd6 {[%emt 0:00:15]} exd6 {[%emt 0:00:00]} 20. Bxa6 {[%emt 0:00:22]} Ra8 {[%emt 0:00:02]} 21. Bb7 {[%emt 0:00:06]} Rxa2 {[%emt 0:00:03]} 22. Bxd5 {[%emt 0:00:03]} h6 {[%emt 0:00:42]} 23. Rc1 {[%emt 0:00:18]} Rb2 {[%emt 0:00:24]} 24. h3 {[%emt 0:00:15]} Be6 {[%emt 0:00:59]} 25. Bxe6 {[%emt 0:00:56]} fxe6 {[%emt 0:00:00]} 26. Rc8+ {[%emt 0:00:16]} Kf7 {[%emt 0:01:13]} 27. Rc7+ {[%emt 0:00:04]} Kf6 {[%emt 0:00:05]} 28. Rd7 {[%emt 0:00:38]} Bf8 {[%emt 0:00:26]} 29. e4 {[%emt 0:00:34]} e5 {[%emt 0:00:21]} 30. dxe5+ {[%emt 0:00:59]} dxe5 {[%emt 0:00:00]} 31. Rd5 {[%emt 0:00:42]} Rxb3 {[%emt 0:00:24]} 32. Nxe5 {[%emt 0:00:19]} Rb1+ {[%emt 0:00:18]} 33. Kh2 {[%emt 0:00:02]} h5 {[%emt 0:00:15]} 34. Nd7+ {[%emt 0:00:08]} Ke7 {[%emt 0:00:01]} 35. Nxf8 {[%emt 0:00:04]} Kxf8 {[%emt 0:00:00]} 36. Rd7 {[%emt 0:00:04]} Re1 {[%emt 0:00:04]} 37. f3 {[%emt 0:00:02]} h4 {[%emt 0:00:03]} 38. Rh7 {[%emt 0:00:04]} Kg8 {[%emt 0:00:15]} 39. Rxh4 {[%emt 0:00:03]} Kg7 {[%emt 0:00:00]} 40. Rg4 {[%emt 0:00:04]} Kf6 {[%emt 0:00:03]} 41. h4 {[%emt 0:00:03]} Re2 {[%emt 0:00:04]} 42. Kg3 {[%emt 0:00:03]} Re1 {[%emt 0:00:03]} 43. Rg5 {[%emt 0:00:04]} Re2 {[%emt 0:00:02]} 44. Rb5 {[%emt 0:00:06]} Kg7 {[%emt 0:00:03]} 45. h5 {[%emt 0:00:14]} gxh5 {[%emt 0:00:09]} 46. Rxh5 {[%emt 0:00:01]} Kg6 {[%emt 0:00:00]} 47. Rb5 {[%emt 0:00:02]} Kf6 {[%emt 0:00:04]} 48. Ra5 {[%emt 0:00:10]} Kg6 {[%emt 0:00:02]} 49. Kh3 {[%emt 0:00:05]} 1-0

[Event "European Online Club-ch-C 2021"]
[Site "Online"]
[Date "2021.03.27"]
[Round "1.16"]
[White "Lemasle, Raphael"]
[Black "Alvarez Fernandez, Enrique"]
[Result "1-0"]
[ECO "D11"]
[WhiteElo "2067"]
[BlackElo "2349"]
[Annotator "NA"]
[PlyCount "69"]
[EventDate "2021.03.27"]
[EventType "team-tourn"]
[EventCountry "NET"]
[SourceTitle "playchess.com"]
[Source "ChessBase"]
[SourceQuality "1"]
[TimeControl "900+5"]

1. d4 {[%emt 0:00:00]} d5 {[%emt 0:00:15]} 2. Nf3 {[%emt 0:00:04]} Nf6 {[%emt 0:00:32]} 3. c4 {[%emt 0:00:04]} c6 {[%emt 0:00:03]} 4. Nbd2 {[%emt 0:00:04]} Bf5 {[%emt 0:00:42]} 5. Qb3 {[%emt 0:00:21]} Qb6 {[%emt 0:00:49]} 6. c5 {[%emt 0:00:08]} Qc7 {[%emt 0:01:15]} 7. Qa4 {[%emt 0:01:06]} Nbd7 {[%emt 0:00:32]} 8. e3 {[%emt 0:00:30]} e6 {[%emt 0:01:38]} 9. Be2 {[%emt 0:00:21]} h6 {[%emt 0:00:19]} 10. O-O {[%emt 0:00:21]} Be7 {[%emt 0:00:16]} 11. b4 {[%emt 0:00:12]} b6 {[%emt 0:01:04]} 12. Bb2 {[%emt 0:02:57]} O-O {[%emt 0:00:35]} 13. cxb6 {[%emt 0:00:54]} Qxb6 {[%emt 0:00:36]} 14. Bc3 {[%emt 0:00:21]} Bd6 {[%emt 0:01:22]} 15. Rac1 {[%emt 0:00:54]} Rfe8 {[%emt 0:00:24]} 16. a3 {[%emt 0:00:25]} Rac8 {[%emt 0:00:50]} 17. h3 {[%emt 0:01:36]} Bb8 {[%emt 0:00:21]} 18. Nb3 {[%emt 0:00:31]} Ne4 {[%emt 0:00:08]} 19. Ba6 {[%emt 0:02:30]} Rc7 {[%emt 0:01:17]} 20. Nc5 {[%emt 0:00:16]} Nd6 {[%emt 0:00:22]} 21. Ne5 {[%emt 0:00:30]} Nxe5 {[%emt 0:00:18]} 22. dxe5 {[%emt 0:00:00]} Ne4 {[%emt 0:00:57]} 23. Bd4 {[%emt 0:00:36]} Nd2 {[%emt 0:00:25]} 24. Nb3 {[%emt 0:00:35]} Qxa6 {[%emt 0:00:50]} 25. Qxa6 {[%emt 0:00:06]} Nxb3 {[%emt 0:00:01]} 26. Rxc6 {[%emt 0:00:04]} Rxc6 {[%emt 0:00:27]} 27. Qxc6 {[%emt 0:00:04]} Rd8 {[%emt 0:00:04]} 28. Qc3 {[%emt 0:00:11]} Nxd4 {[%emt 0:00:06]} 29. exd4 {[%emt 0:00:05]} Kh7 {[%emt 0:00:04]} 30. Rc1 {[%emt 0:00:05]} f6 {[%emt 0:00:08]} 31. f4 {[%emt 0:00:03]} fxe5 {[%emt 0:00:02]} 32. fxe5 {[%emt 0:00:02]} Rf8 {[%emt 0:00:05]} 33. Qc8 {[%emt 0:00:29]} Kg8 {[%emt 0:00:11]} 34. Qxf8+ {[%emt 0:00:04]} Kxf8 {[%emt 0:00:05]} 35. Rc8+ {[%emt 0:00:02]} 1-0

[Event "European Online Club-ch-C 2021"]
[Site "Online"]
[Date "2021.03.27"]
[Round "1.17"]
[White "Babula, Vlastimil"]
[Black "Markoja, Boris"]
[Result "1/2-1/2"]
[ECO "E11"]
[WhiteElo "2559"]
[BlackElo "2439"]
[Annotator "ChessBase"]
[PlyCount "84"]
[EventDate "2021.03.27"]
[EventType "team-tourn"]
[EventCountry "NET"]
[SourceTitle "playchess.com"]
[Source "ChessBase"]
[SourceQuality "1"]
[TimeControl "900+5"]

1. d4 {[%emt 0:00:00]} Nf6 {[%emt 0:00:06]} 2. c4 {[%emt 0:00:04]} e6 {[%emt 0:00:06]} 3. Nf3 {[%emt 0:00:04]} Bb4+ {[%emt 0:00:06]} 4. Bd2 {[%emt 0:00:05]} Bxd2+ {[%emt 0:00:07]} 5. Qxd2 {[%emt 0:00:06]} d5 {[%emt 0:00:19]} 6. g3 {[%emt 0:00:09]} O-O {[%emt 0:00:08]} 7. Bg2 {[%emt 0:00:53]} c6 {[%emt 0:01:10]} 8. Qc2 {[%emt 0:00:27]} Nbd7 {[%emt 0:01:12]} 9. O-O {[%emt 0:00:25]} Qe7 {[%emt 0:00:17]} 10. Nbd2 {[%emt 0:00:18]} e5 {[%emt 0:02:18]} 11. cxd5 {[%emt 0:00:28]} Nxd5 {[%emt 0:00:58]} 12. e4 {[%emt 0:00:18]} N5b6 {[%emt 0:00:12]} 13. Nb3 {[%emt 0:02:16]} exd4 {[%emt 0:02:57]} 14. Nfxd4 {[%emt 0:00:23]} Ne5 {[%emt 0:00:10]} 15. h3 {[%emt 0:00:42]} a5 {[%emt 0:00:41]} 16. a3 {[%emt 0:01:22]} a4 {[%emt 0:00:16]} 17. Nc5 {[%emt 0:00:07]} Nec4 {[%emt 0:00:33]} 18. Nd3 {[%emt 0:00:29]} Rd8 {[%emt 0:00:03]} 19. Ne2 {[%emt 0:00:31]} Ne5 {[%emt 0:00:15]} 20. Rfd1 {[%emt 0:02:25]} Nxd3 {[%emt 0:00:04]} 21. Rxd3 {[%emt 0:00:04]} Be6 {[%emt 0:00:35]} 22. Nd4 {[%emt 0:00:12]} Bc4 {[%emt 0:00:09]} 23. Rd2 {[%emt 0:00:06]} g6 {[%emt 0:00:21]} 24. Rad1 {[%emt 0:00:08]} Re8 {[%emt 0:02:29]} 25. Qc3 {[%emt 0:00:39]} c5 {[%emt 0:00:07]} 26. Ne2 {[%emt 0:00:20]} Bb3 {[%emt 0:00:02]} 27. Rc1 {[%emt 0:00:04]} Nc4 {[%emt 0:00:04]} 28. Rd5 {[%emt 0:00:23]} b6 {[%emt 0:00:09]} 29. Nf4 {[%emt 0:00:06]} Ne5 {[%emt 0:00:05]} 30. Rd2 {[%emt 0:00:05]} Nc6 {[%emt 0:00:31]} 31. Nd5 {[%emt 0:01:55]} Bxd5 {[%emt 0:00:03]} 32. exd5 {[%emt 0:00:07]} Nd4 {[%emt 0:00:04]} 33. d6 {[%emt 0:00:06]} Qxd6 {[%emt 0:00:03]} 34. Bxa8 {[%emt 0:00:04]} Rxa8 {[%emt 0:00:06]} 35. Re1 {[%emt 0:00:04]} Rd8 {[%emt 0:00:11]} 36. Rd3 {[%emt 0:00:15]} Qd5 {[%emt 0:00:13]} 37. Rde3 {[%emt 0:00:05]} Rd6 {[%emt 0:00:08]} 38. Re4 {[%emt 0:00:31]} Rf6 {[%emt 0:00:09]} 39. f4 {[%emt 0:00:04]} h5 {[%emt 0:00:05]} 40. Kh2 {[%emt 0:00:09]} Kh7 {[%emt 0:00:15]} 41. Qd3 {[%emt 0:00:18]} Rd6 {[%emt 0:00:08]} 42. Qc3 {[%emt 0:00:30]} Kh6 {[%emt 0:00:08]} 1/2-1/2

[Event "European Online Club-ch-C 2021"]
[Site "Online"]
[Date "2021.03.27"]
[Round "1.18"]
[White "Subelj, Jan"]
[Black "Grigorian, Spartak"]
[Result "1-0"]
[ECO "B51"]
[WhiteElo "2418"]
[BlackElo "2458"]
[Annotator "ChessBase"]
[PlyCount "119"]
[EventDate "2021.03.27"]
[EventType "team-tourn"]
[EventCountry "NET"]
[SourceTitle "playchess.com"]
[Source "ChessBase"]
[SourceQuality "1"]
[TimeControl "900+5"]

1. e4 {[%emt 0:00:00]} c5 {[%emt 0:00:10]} 2. Nf3 {[%emt 0:00:06]} d6 {[%emt 0:00:01]} 3. Bb5+ {[%emt 0:00:03]} Nd7 {[%emt 0:00:04]} 4. c3 {[%emt 0:00:02]} Ngf6 {[%emt 0:00:10]} 5. Qe2 {[%emt 0:00:07]} a6 {[%emt 0:00:02]} 6. Ba4 {[%emt 0:00:02]} b5 {[%emt 0:00:06]} 7. Bc2 {[%emt 0:00:02]} Bb7 {[%emt 0:00:08]} 8. d4 {[%emt 0:00:32]} e6 {[%emt 0:00:08]} 9. O-O {[%emt 0:00:08]} Be7 {[%emt 0:00:02]} 10. Re1 {[%emt 0:00:17]} Qc7 {[%emt 0:00:16]} 11. Bd3 {[%emt 0:00:06]} O-O {[%emt 0:00:31]} 12. Nbd2 {[%emt 0:00:03]} Rac8 {[%emt 0:00:16]} 13. Nf1 {[%emt 0:00:06]} cxd4 {[%emt 0:00:09]} 14. cxd4 {[%emt 0:00:02]} e5 {[%emt 0:00:01]} 15. Ng3 {[%emt 0:01:10]} exd4 {[%emt 0:00:03]} 16. Nxd4 {[%emt 0:00:07]} Rfe8 {[%emt 0:00:02]} 17. Bf4 {[%emt 0:00:11]} Bf8 {[%emt 0:00:11]} 18. Ndf5 {[%emt 0:00:33]} Ne5 {[%emt 0:00:21]} 19. Rad1 {[%emt 0:00:22]} Qb6 {[%emt 0:02:29]} 20. Bb1 {[%emt 0:01:26]} d5 {[%emt 0:01:39]} 21. Be3 {[%emt 0:01:56]} Qc7 {[%emt 0:00:25]} 22. f4 {[%emt 0:02:23]} Nc4 {[%emt 0:01:12]} 23. Bd4 {[%emt 0:02:31]} Re6 {[%emt 0:04:58]} 24. e5 {[%emt 0:00:29]} g6 {[%emt 0:00:19]} 25. Ne3 {[%emt 0:01:22]} Nxe3 {[%emt 0:00:55]} 26. Qxe3 {[%emt 0:00:14]} Ne4 {[%emt 0:01:23]} 27. Nxe4 {[%emt 0:00:19]} dxe4 {[%emt 0:00:00]} 28. Bxe4 {[%emt 0:00:02]} Bxe4 {[%emt 0:00:04]} 29. Qxe4 {[%emt 0:00:02]} Qc2 {[%emt 0:00:06]} 30. Bc3 {[%emt 0:00:27]} Qxe4 {[%emt 0:00:34]} 31. Rxe4 {[%emt 0:00:03]} f5 {[%emt 0:00:00]} 32. Re2 {[%emt 0:00:05]} b4 {[%emt 0:00:01]} 33. Be1 {[%emt 0:00:03]} Rec6 {[%emt 0:00:07]} 34. Kf1 {[%emt 0:00:12]} Rc4 {[%emt 0:00:12]} 35. g3 {[%emt 0:00:05]} a5 {[%emt 0:00:15]} 36. Rd7 {[%emt 0:00:20]} R4c7 {[%emt 0:00:20]} 37. Red2 {[%emt 0:00:43]} Be7 {[%emt 0:00:01]} 38. Rxc7 {[%emt 0:00:09]} Rxc7 {[%emt 0:00:00]} 39. b3 {[%emt 0:00:04]} Kf7 {[%emt 0:00:03]} 40. Ke2 {[%emt 0:00:01]} Ke6 {[%emt 0:00:02]} 41. Bf2 {[%emt 0:00:02]} Rc1 {[%emt 0:00:08]} 42. Bb6 {[%emt 0:00:07]} Bc5 {[%emt 0:00:24]} 43. Bxc5 {[%emt 0:00:10]} Rxc5 {[%emt 0:00:00]} 44. Rd6+ {[%emt 0:00:01]} Ke7 {[%emt 0:00:01]} 45. Kd2 {[%emt 0:00:02]} a4 {[%emt 0:00:15]} 46. Rb6 {[%emt 0:00:14]} Rd5+ {[%emt 0:00:07]} 47. Ke3 {[%emt 0:00:03]} Rc5 {[%emt 0:00:08]} 48. Rxb4 {[%emt 0:00:05]} a3 {[%emt 0:00:03]} 49. Rc4 {[%emt 0:00:14]} Rd5 {[%emt 0:00:03]} 50. Ra4 {[%emt 0:00:08]} Rd1 {[%emt 0:00:01]} 51. Rxa3 {[%emt 0:00:01]} Rh1 {[%emt 0:00:02]} 52. Ra7+ {[%emt 0:00:02]} Ke6 {[%emt 0:00:02]} 53. Rxh7 {[%emt 0:00:02]} Re1+ {[%emt 0:00:04]} 54. Kd4 {[%emt 0:00:07]} Rd1+ {[%emt 0:00:02]} 55. Kc5 {[%emt 0:00:02]} Rc1+ {[%emt 0:00:01]} 56. Kb5 {[%emt 0:00:02]} Kd5 {[%emt 0:00:05]} 57. b4 {[%emt 0:00:05]} Ke4 {[%emt 0:00:05]} 58. e6 {[%emt 0:00:03]} Kf3 {[%emt 0:00:01]} 59. e7 {[%emt 0:00:03]} Re1 {[%emt 0:00:02]} 60. a4 {[%emt 0:00:03]} 1-0

[Event "European Online Club-ch-C 2021"]
[Site "Online"]
[Date "2021.03.27"]
[Round "1.19"]
[White "Reuker, Jari"]
[Black "Skuhala, Jernej"]
[Result "0-1"]
[ECO "A19"]
[WhiteElo "2423"]
[BlackElo "2351"]
[Annotator "NA"]
[PlyCount "110"]
[EventDate "2021.03.27"]
[EventType "team-tourn"]
[EventCountry "NET"]
[SourceTitle "playchess.com"]
[Source "ChessBase"]
[SourceQuality "1"]
[TimeControl "900+5"]

1. c4 {[%emt 0:00:00]} Nf6 {[%emt 0:00:02]} 2. Nc3 {[%emt 0:00:03]} e6 {[%emt 0:00:02]} 3. e4 {[%emt 0:00:01]} c5 {[%emt 0:00:22]} 4. e5 {[%emt 0:00:03]} Ng8 {[%emt 0:00:03]} 5. Nf3 {[%emt 0:00:01]} d6 {[%emt 0:00:58]} 6. exd6 {[%emt 0:00:03]} Bxd6 {[%emt 0:00:02]} 7. d4 {[%emt 0:00:01]} cxd4 {[%emt 0:00:08]} 8. Nxd4 {[%emt 0:00:00]} Nf6 {[%emt 0:00:05]} 9. g3 {[%emt 0:00:07]} a6 {[%emt 0:00:32]} 10. Bg2 {[%emt 0:00:16]} O-O {[%emt 0:01:22]} 11. O-O {[%emt 0:00:04]} Qc7 {[%emt 0:00:06]} 12. Ndb5 {[%emt 0:01:10]} axb5 {[%emt 0:02:30]} 13. Nxb5 {[%emt 0:00:00]} Qxc4 {[%emt 0:00:34]} 14. Nxd6 {[%emt 0:00:03]} Qc7 {[%emt 0:00:12]} 15. Bf4 {[%emt 0:02:58]} Nc6 {[%emt 0:03:48]} 16. Ne4 {[%emt 0:05:01]} Qd8 {[%emt 0:01:12]} 17. Qxd8 {[%emt 0:00:03]} Nxd8 {[%emt 0:00:36]} 18. Nxf6+ {[%emt 0:00:35]} gxf6 {[%emt 0:00:04]} 19. Rfd1 {[%emt 0:01:27]} e5 {[%emt 0:00:21]} 20. Bh6 {[%emt 0:00:02]} Re8 {[%emt 0:00:01]} 21. a3 {[%emt 0:00:39]} Ne6 {[%emt 0:00:20]} 22. Be3 {[%emt 0:00:54]} Kg7 {[%emt 0:00:54]} 23. Rd6 {[%emt 0:00:38]} Rd8 {[%emt 0:01:07]} 24. Rad1 {[%emt 0:00:16]} Rxd6 {[%emt 0:00:03]} 25. Rxd6 {[%emt 0:00:01]} Kf8 {[%emt 0:00:37]} 26. Rb6 {[%emt 0:00:38]} Ra6 {[%emt 0:00:10]} 27. Rb4 {[%emt 0:00:44]} Nd8 {[%emt 0:00:08]} 28. Bc5+ {[%emt 0:00:15]} Kg7 {[%emt 0:00:14]} 29. Kf1 {[%emt 0:00:40]} Nc6 {[%emt 0:00:13]} 30. Rb6 {[%emt 0:00:24]} Rxb6 {[%emt 0:00:28]} 31. Bxb6 {[%emt 0:00:00]} f5 {[%emt 0:00:01]} 32. Ke2 {[%emt 0:00:05]} Kf6 {[%emt 0:00:03]} 33. Ke3 {[%emt 0:00:15]} Be6 {[%emt 0:00:06]} 34. b4 {[%emt 0:00:08]} Bc4 {[%emt 0:00:04]} 35. f4 {[%emt 0:00:05]} e4 {[%emt 0:00:17]} 36. Bc5 {[%emt 0:00:03]} Bd3 {[%emt 0:00:07]} 37. h3 {[%emt 0:00:08]} h5 {[%emt 0:00:02]} 38. a4 {[%emt 0:00:06]} Ke6 {[%emt 0:00:03]} 39. b5 {[%emt 0:00:10]} Na5 {[%emt 0:00:03]} 40. Bb4 {[%emt 0:00:03]} Nc4+ {[%emt 0:00:02]} 41. Kd4 {[%emt 0:00:01]} Nb6 {[%emt 0:00:05]} 42. a5 {[%emt 0:00:10]} Nd5 {[%emt 0:00:01]} 43. Kc5 {[%emt 0:00:06]} Nxb4 {[%emt 0:00:11]} 44. Kxb4 {[%emt 0:00:00]} Kd5 {[%emt 0:00:02]} 45. Kc3 {[%emt 0:00:10]} Bxb5 {[%emt 0:00:03]} 46. h4 {[%emt 0:00:05]} Be2 {[%emt 0:00:09]} 47. Bh3 {[%emt 0:00:02]} Bg4 {[%emt 0:00:02]} 48. Bf1 {[%emt 0:00:01]} e3 {[%emt 0:00:03]} 49. Bc4+ {[%emt 0:00:03]} Ke4 {[%emt 0:00:05]} 50. Bxf7 {[%emt 0:00:06]} Kf3 {[%emt 0:00:01]} 51. Bd5+ {[%emt 0:00:02]} Kf2 {[%emt 0:00:01]} 52. Bc4 {[%emt 0:00:13]} e2 {[%emt 0:00:03]} 53. Bxe2 {[%emt 0:00:01]} Bxe2 {[%emt 0:00:01]} 54. Kd4 {[%emt 0:00:02]} Kxg3 {[%emt 0:00:02]} 55. Ke5 {[%emt 0:00:01]} Kg4 {[%emt 0:00:01]} 0-1